Cogmind - Beta 15 @@@ ROGUE MODE // 2025.08.05 @ 06:38:49 Player: shapeshifter Result: Destroyed by S-43 Plague with Heavy Machine Gun Performance ------------- Evolutions (7) 3500 Regions Visited (9) 1800 Robots Destroyed (0) 0 Value Destroyed (0) 0 Prototype IDs (0) 0 Alien Tech Used (0) 0 Bonus (4585) 4585 TOTAL SCORE: 9885 Bonus ------- Pacifist 4085 Entered DSFs 500 Cogmind --------- Core Integrity 0/1300 Matter 265/300 Energy 98/100 System Corruption 1% Temperature Cool (0) Movement Core (50) Location -3/Research Parts ------- > --- POWER (3) -------- (None) > --- PROPULSION (10) -- (None) > --- UTILITY (6) ------ (None) > --- WEAPON (2) ------- (None) > --- INVENTORY (5) ---- Improved Transmission Jammer Advanced ECM Suite Improved Shield Generator Rocket Launcher Peak State ------------ > --- POWER ------------ Micro Nuclear Core Light Antimatter Reactor > --- PROPULSION ------- Improved Antigrav System Improved Antigrav System Improved Antigrav System Improved Antigrav System > --- UTILITY ---------- Improved Propulsion Shielding Graphene Brace Hacking Suite Hacking Suite Hacking Suite > --- WEAPON ----------- (None) > --- INVENTORY -------- Impulse Thruster Improved Transmission Jammer Advanced ECM Suite Improved Shield Generator Rocket Launcher [Rating: 60] Favorites ----------- Power Light Deuterium Engine Engine Light Deuterium Engine Power Core Micro Nuclear Core Reactor Light Antimatter Reactor Propulsion Cesium-ion Thruster Hover Unit Improved Antigrav System Flight Unit Cesium-ion Thruster Utility Hacking Suite Device Seismic Detector Storage Small Storage Unit Hackware Hacking Suite Protection Improved Propulsion Shielding Weapon None Build | -11 -10 -9 -8 -7 -6 -5 -5 -4 -3 ------- Run | Yrd Mat Mat Mat Fac Fac Fac DSF Fac Res Slots Evolved 14 | . . 2 2 2 2 2 . 2 2 Power 2 | . . . 1 . . 1 . . . Propulsion 8 | . . 2 . 1 1 1 . 1 2 Utility 4 | . . . 1 1 1 . . 1 . Weapon . | . . . . . . . . . . Parts Attached 29 | . . . 11 3 3 . 7 5 . Power 5 | . . . 3 . . . 1 1 . Engine 3 | . . . 3 . . . . . . Core 1 | . . . . . . . 1 . . Reactor 1 | . . . . . . . . 1 . Propulsion 12 | . . . 5 1 . . 4 2 . Treads . | . . . . . . . . . . Leg . | . . . . . . . . . . Wheel . | . . . . . . . . . . Hover 5 | . . . . . . . 4 1 . Flight 7 | . . . 5 1 . . . 1 . Utility 12 | . . . 3 2 3 . 2 2 . Device 5 | . . . 2 1 1 . 1 . . Storage 1 | . . . 1 . . . . . . Processor . | . . . . . . . . . . Hackware 3 | . . . . 1 . . 1 1 . Protection 3 | . . . . . 2 . . 1 . Artifact . | . . . . . . . . . . Weapon . | . . . . . . . . . . Energy Gun . | . . . . . . . . . . Energy Cannon . | . . . . . . . . . . Ballistic Gun . | . . . . . . . . . . Ballistic Cannon . | . . . . . . . . . . Launcher . | . . . . . . . . . . Special Weapon . | . . . . . . . . . . Impact Weapon . | . . . . . . . . . . Slashing Weapon . | . . . . . . . . . . Piercing Weapon . | . . . . . . . . . . Special Melee Weapon . | . . . . . . . . . . Unidentified Prototypes . | . . . . . . . . . . Parts Lost 20 | . . . 1 2 1 . 4 10 2 Power 2 | . . . 1 . . . . 1 . Propulsion 11 | . . . . 2 1 . 3 5 . Utility 7 | . . . . . . . 1 4 2 Weapon . | . . . . . . . . . . Highest Loss Streak 9 | . . . 1 1 1 . 4 9 2 To Critical Strikes . | . . . . . . . . . . Average Backups 5 | 1 3 3 5 7 7 8 6 4 4 Power . | 1 2 2 1 . . 1 1 . . Propulsion . | . . . . . . . . . . Utility 3 | . 1 1 3 6 6 6 3 2 3 Weapon . | . . . 1 1 1 1 1 1 1 Tool/Special . | . . . . . . . . . . Unused Backups 13 | . . . . 1 4 . 4 . 4 Power 3 | . . . . . 1 . 2 . . Propulsion . | . . . . . . . . . . Utility 8 | . . . . 1 3 . 1 . 3 Weapon 2 | . . . . . . . 1 . 1 Tool/Special . | . . . . . . . . . . Average Slot Usage (%) 32 | . . . 39 69 39 35 36 37 6 Engine 2 | . . . 10 7 1 . . . . Hover 2 | . . . . . . . 4 12 . Flight 10 | . . . 20 31 14 11 6 . . Device 7 | . . . 5 15 9 11 11 6 3 Storage 2 | . . . 3 7 6 5 2 . . Hackware 5 | . . . . 6 6 5 9 10 3 Peak Build Rating 60 | . . . 23 26 23 18 41 60 11 Average Rating 17 | . . . 11 23 16 18 24 36 8 On Entrance 13 | . . . . 22 20 18 18 41 11 Naked Turns 171 | . 41 70 17 . . . . . 43 Heaviest Build 21 | . . . 19 18 13 7 8 21 1 Greatest Support 36 | 3 3 3 20 24 13 8 36 36 3 Greatest Overweight (x) 1 | . . . . . . . . 1 . Average Overweight (x) . | . . . . . . . . . . Largest Inventory Capacity 8 | 5 5 5 8 8 8 8 8 5 5 Average Capacity 6 | 5 5 5 6 8 8 8 6 5 5 Most Carried 8 | 3 3 5 8 8 8 8 8 5 4 Average Carried 5 | 2 3 3 5 7 7 8 6 4 4 Final Capacity 8 | 5 5 5 8 8 8 8 5 5 5 Final Carried 8 | 3 3 5 8 8 8 8 5 4 4 Class Distribution -------------------- 43% | Sprinter 34% | Mutant 19% | Hacker-Mutant Dominant Class ---------------- Mutant | -10/Materials Mutant | -9/Materials Mutant | -8/Materials Sprinter | -7/Factory Sprinter | -6/Factory Sprinter | -5/Factory Hacker-Sprinter | -5/DSF Hacker-Mutant | -4/Factory Mutant | -3/Research Resources | -11 -10 -9 -8 -7 -6 -5 -5 -4 -3 ----------- Run | Yrd Mat Mat Mat Fac Fac Fac DSF Fac Res Matter Collected 357 | 200 . . . 25 131 . 1 . . Remotely . | . . . . . . . . . . Salvage Created . | . . . . . . . . . . Parts . | . . . . . . . . . . Haulers Intercepted . | . . . . . . . . . . Recyclers Shooed . | . . . . . . . . . . Parts Field Recycled . | . . . . . . . . . . Retrieved Matter . | . . . . . . . . . . Parts Self-Destructed . | . . . . . . . . . . Prevented . | . . . . . . . . . . Kills | -11 -10 -9 -8 -7 -6 -5 -5 -4 -3 ------- Run | Yrd Mat Mat Mat Fac Fac Fac DSF Fac Res Combat Hostiles Destroyed . | . . . . . . . . . . Classes Destroyed . | . . . . . . . . . . Best Kill Streak . | . . . . . . . . . . Combat Bots Only . | . . . . . . . . . . Max Kills in Single Turn . | . . . . . . . . . . Gunslinging . | . . . . . . . . . . Exploded . | . . . . . . . . . . Melee . | . . . . . . . . . . Uniques/NPCs Destroyed . | . . . . . . . . . . Combat | -11 -10 -9 -8 -7 -6 -5 -5 -4 -3 -------- Run | Yrd Mat Mat Mat Fac Fac Fac DSF Fac Res Hostile Shots Fired 384 | . 21 26 14 19 35 . 18 158 93 Missed 177 | . 8 13 6 10 20 . 9 80 31 Hits 207 | . 13 13 8 9 15 . 9 78 62 Projectile 207 | . 13 13 8 9 15 . 9 78 62 Critical Strikes 5 | . . . 1 . . . 2 2 . Actively Blocked 3 | . . . . . . . 1 2 . Damage Taken 3937 | . 109 139 116 136 266 . 547 1241 1383 Core 2765 | . 109 139 29 48 136 . 387 598 1319 Absorbed by Shields . | . . . . . . . . . . Redirected to Shielding 101 | . . . . . . . . 101 . Ignored by Resistances 3 | . . . . . 3 . . . . Core Remaining (%) 75 | 100 56 65 94 93 84 . 61 48 . Volleys Fired . | . . . . . . . . . . Largest . | . . . . . . . . . . Hottest . | . . . . . . . . . . Shots Fired . | . . . . . . . . . . Gun . | . . . . . . . . . . Cannon . | . . . . . . . . . . Launcher . | . . . . . . . . . . Special . | . . . . . . . . . . Kinetic . | . . . . . . . . . . Thermal . | . . . . . . . . . . Explosive . | . . . . . . . . . . Electromagnetic . | . . . . . . . . . . Robot Hit Streak . | . . . . . . . . . . Robot Miss Streak . | . . . . . . . . . . Penetration Max . | . . . . . . . . . . Secondary Targets . | . . . . . . . . . . Shots Hit Robots . | . . . . . . . . . . Core Hits 2 | . . . . . . . . 2 . Critical Kills . | . . . . . . . . . . Critical Parts Destroyed . | . . . . . . . . . . Critical Strikes . | . . . . . . . . . . Melee Attacks . | . . . . . . . . . . Impact . | . . . . . . . . . . Slashing . | . . . . . . . . . . Piercing . | . . . . . . . . . . Sneak Attacks . | . . . . . . . . . . Combat Hostiles . | . . . . . . . . . . Follow-up Attacks . | . . . . . . . . . . Damage Inflicted 32 | . 1 12 . . . . . 15 4 Guns . | . . . . . . . . . . Cannons . | . . . . . . . . . . Explosions . | . . . . . . . . . . Melee . | . . . . . . . . . . Ramming 32 | . 1 12 . . . . . 15 4 Kinetic . | . . . . . . . . . . Thermal . | . . . . . . . . . . Explosive . | . . . . . . . . . . Electromagnetic . | . . . . . . . . . . Impact . | . . . . . . . . . . Slashing . | . . . . . . . . . . Piercing . | . . . . . . . . . . Highest Corruption 1 | . . . . . . . . . 1 Average Corruption 1 | . . . . . . . . . 1 Corruption Purged . | . . . . . . . . . . Corruption Blocked . | . . . . . . . . . . Effects 1 | . . . . . . . . . 1 Alerts 1 | . . . . . . . . . 1 Overload Shots . | . . . . . . . . . . Overflow Damage . | . . . . . . . . . . Projectiles . | . . . . . . . . . . Explosions . | . . . . . . . . . . Melee . | . . . . . . . . . . Knockbacks . | . . . . . . . . . . Impact . | . . . . . . . . . . Kinetic . | . . . . . . . . . . Secondary . | . . . . . . . . . . Self-Inflicted Damage 12 | . . 5 . . . . . 6 1 Shots . | . . . . . . . . . . Rammed 10 | . 1 4 . . . . . 3 2 Targets Rammed 10 | . 1 4 . . . . . 3 2 Kicked . | . . . . . . . . . . Crushed . | . . . . . . . . . . Highest Temperature 22 | . . . 22 2 . . . . . Average Temperature 8 | . . . 10 1 . . . . . Received Heat Transfer 381 | . 30 30 72 81 72 . . 66 30 Siege Activations . | . . . . . . . . . . Martial Activations . | . . . . . . . . . . Shielding Activations . | . . . . . . . . . . Robots Disrupted . | . . . . . . . . . . Combat Hostiles . | . . . . . . . . . . Robots Corrupted . | . . . . . . . . . . Combat Hostiles . | . . . . . . . . . . Parts Fried . | . . . . . . . . . . Impact Corruptions . | . . . . . . . . . . Robots Melted . | . . . . . . . . . . Combat Hostiles . | . . . . . . . . . . Parts Melted . | . . . . . . . . . . Heat Transferred . | . . . . . . . . . . Parts Sabotaged . | . . . . . . . . . . Parts Stolen . | . . . . . . . . . . Parts Stripped . | . . . . . . . . . . Power Chain Reactions . | . . . . . . . . . . Alert | -11 -10 -9 -8 -7 -6 -5 -5 -4 -3 ------- Run | Yrd Mat Mat Mat Fac Fac Fac DSF Fac Res Maximum Alert Level 1 | . . . . . 1 . . . . Low Security (%) 97 | 100 100 100 100 100 85 100 100 100 100 Level 1 2 | . . . . . 14 . . . . Level 2 . | . . . . . . . . . . Level 3 . | . . . . . . . . . . Level 4 . | . . . . . . . . . . Level 5 . | . . . . . . . . . . High Security . | . . . . . . . . . . Max Security . | . . . . . . . . . . Peak Influence 214 | . . 28 9 32 214 99 84 110 142 Initial 99 | . . . 9 . 15 99 69 23 57 Average 39 | . . 11 2 3 92 99 64 23 68 Influence Increases 728 | . . 43 . 54 269 . 15 172 175 Successful Hack 83 | . . 28 . 24 14 . . 7 10 Partial Spotted 75 | . . . . 30 15 . 15 15 . Lose Combat Pursuer 570 | . . 15 . . 240 . . 150 165 Influence Decreases 586 | . . 20 23 22 97 105 70 106 143 Entered New Map 240 | . . . 14 . 17 105 30 21 53 Time Decay 241 | . . 20 9 22 70 . . 50 70 Lost Part 105 | . . . . . 10 . 40 35 20 Squads Dispatched 15 | . 2 2 1 2 1 . 1 2 4 Investigation 7 | . 1 2 . . 1 . . 1 2 Extermination 1 | . . . . . . . . . 1 Reinforcement 7 | . 1 . 1 2 . . 1 1 1 Assault . | . . . . . . . . . . Garrison . | . . . . . . . . . . Intercept . | . . . . . . . . . . Searches Triggered . | . . . . . . . . . . Construction Impeded . | . . . . . . . . . . Haulers Reinforced . | . . . . . . . . . . Active Scanning Responses . | . . . . . . . . . . Cargo Convoy Interrupts . | . . . . . . . . . . Stealth | -11 -10 -9 -8 -7 -6 -5 -5 -4 -3 --------- Run | Yrd Mat Mat Mat Fac Fac Fac DSF Fac Res Distress Signals 6 | . 1 . 1 . . . . 2 2 Communications Jammed . | . . . . . . . . . . Distress Signals . | . . . . . . . . . . Times Spotted 105 | . 7 7 10 11 15 . 3 29 23 Peak Tracking Total 22 | . 7 7 11 6 9 . 3 22 12 Tactical Retreats 14 | . . 1 . 2 4 . . 3 4 Traps | -11 -10 -9 -8 -7 -6 -5 -5 -4 -3 ------- Run | Yrd Mat Mat Mat Fac Fac Fac DSF Fac Res Traps Triggered 4 | . . 1 . 1 1 . . 1 . Indirectly . | . . . . . . . . . . Trap Hack Attempts . | . . . . . . . . . . Triggered . | . . . . . . . . . . Disarmed . | . . . . . . . . . . Reprogrammed . | . . . . . . . . . . Reused . | . . . . . . . . . . Traps Extracted . | . . . . . . . . . . Installed . | . . . . . . . . . . Triggered . | . . . . . . . . . . Machines | -11 -10 -9 -8 -7 -6 -5 -5 -4 -3 ---------- Run | Yrd Mat Mat Mat Fac Fac Fac DSF Fac Res Machines Disabled . | . . . . . . . . . . Max in Single Turn . | . . . . . . . . . . Garrison Access 1 | . . . . 1 . . . . . Machines Repaired . | . . . . . . . . . . Machines Dismantled . | . . . . . . . . . . Machines Sabotaged . | . . . . . . . . . . Overloaded Fab Kills . | . . . . . . . . . . Hacking | -11 -10 -9 -8 -7 -6 -5 -5 -4 -3 --------- Run | Yrd Mat Mat Mat Fac Fac Fac DSF Fac Res Machines Accessed 14 | . 2 1 . 5 2 1 . 1 2 Terminals 12 | . 2 1 . 4 1 1 . 1 2 Fabricators . | . . . . . . . . . . Repair Stations . | . . . . . . . . . . Recycling Units . | . . . . . . . . . . Scanalyzers . | . . . . . . . . . . Garrison Access 2 | . . . . 1 1 . . . . Total Hacks 33 | . 4 3 . 7 5 1 . 5 8 Successful 14 | . 1 2 . 3 1 1 . 4 2 Failed 19 | . 3 1 . 4 4 . . 1 6 Catastrophic 6 | . 2 . . 1 1 . . . 2 Database Lockouts . | . . . . . . . . . . Manual 19 | . 4 1 . 5 1 . . 3 5 Terminals 29 | . 4 3 . 6 2 1 . 5 8 Fabricators . | . . . . . . . . . . Repair Stations . | . . . . . . . . . . Recycling Units . | . . . . . . . . . . Scanalyzers . | . . . . . . . . . . Garrison Access 4 | . . . . 1 3 . . . . Terminal Hacks 7 | . . 1 . 1 1 1 . 3 . Robot Analysis 1 | . . . . . . . . 1 . Open DSF 1 | . . . . . . 1 . . . Level Access Points 1 | . . . . . . . . 1 . Branch Access Points 2 | . . . . 1 1 . . . . Emergency Access Points 1 | . . 1 . . . . . . . Registered Prototypes 1 | . . . . . . . . 1 . Fabricator Hacks . | . . . . . . . . . . Repair Station Hacks . | . . . . . . . . . . Recycling Unit Hacks . | . . . . . . . . . . Scanalyzer . | . . . . . . . . . . Garrison Access Hacks 1 | . . . . 1 . . . . . Seal Access 1 | . . . . 1 . . . . . Unauthorized Hacks 6 | . 1 1 . 1 . . . 1 2 Terminals 6 | . 1 1 . 1 . . . 1 2 Botnet 6 | . 1 1 . 1 . . . 1 2 Fabricators . | . . . . . . . . . . Repair Stations . | . . . . . . . . . . Recycling Units . | . . . . . . . . . . Scanalyzers . | . . . . . . . . . . Garrison Access . | . . . . . . . . . . Data Cores Recovered . | . . . . . . . . . . Used . | . . . . . . . . . . Hacking Detections 12 | . 2 1 . 4 2 . . 1 2 Full Trace Events 6 | . 1 1 . . 1 . . 1 2 Feedback Events . | . . . . . . . . . . Feedback Blocked . | . . . . . . . . . . Robot Schematics Acquired . | . . . . . . . . . . Robots Built . | . . . . . . . . . . Authchips . | . . . . . . . . . . Time . | . . . . . . . . . . Total Robot Build Rating . | . . . . . . . . . . Part Schematics Acquired . | . . . . . . . . . . Parts Built . | . . . . . . . . . . Authchips . | . . . . . . . . . . Time . | . . . . . . . . . . Total Part Build Rating . | . . . . . . . . . . Parts Repaired . | . . . . . . . . . . Time . | . . . . . . . . . . Parts Recycled . | . . . . . . . . . . Recycled Matter . | . . . . . . . . . . Retrieved Matter . | . . . . . . . . . . Retrieved Components . | . . . . . . . . . . Parts Scanalyzed . | . . . . . . . . . . Part Schematics Acquired . | . . . . . . . . . . Parts Damaged . | . . . . . . . . . . Bothacking | -11 -10 -9 -8 -7 -6 -5 -5 -4 -3 ------------ Run | Yrd Mat Mat Mat Fac Fac Fac DSF Fac Res Used RIF Installer . | . . . . . . . . . . Robots Hacked . | . . . . . . . . . . Non-combat . | . . . . . . . . . . Combat . | . . . . . . . . . . Robot Hacks Applied . | . . . . . . . . . . Relay Couplers Released . | . . . . . . . . . . Fabnet Peak Effective % . | . . . . . . . . . . Robots Rewired . | . . . . . . . . . . Allies Hacked . | . . . . . . . . . . Hacks Repelled . | . . . . . . . . . . Allies | -11 -10 -9 -8 -7 -6 -5 -5 -4 -3 -------- Run | Yrd Mat Mat Mat Fac Fac Fac DSF Fac Res Total Allies . | . . . . . . . . . . Largest Group . | . . . . . . . . . . Highest-Rated Group . | . . . . . . . . . . Highest-Rated Ally . | . . . . . . . . . . Total Orders . | . . . . . . . . . . Ally Attacks . | . . . . . . . . . . Total Damage . | . . . . . . . . . . Kills . | . . . . . . . . . . Allies Corrupted . | . . . . . . . . . . Allies Melted . | . . . . . . . . . . Intel | -11 -10 -9 -8 -7 -6 -5 -5 -4 -3 ------- Run | Yrd Mat Mat Mat Fac Fac Fac DSF Fac Res Active Infowar (turns) 346 | . . . 12 146 108 . 30 50 . Seismic 346 | . . . 12 146 108 . 30 50 . ECM 169 | . . . . 140 29 . . . . Robot Analysis Total 1 | . . . . . . . . 1 . Derelict Logs Recovered . | . . . . . . . . . . Drone Launches . | . . . . . . . . . . Drone Recoveries . | . . . . . . . . . . Exploration | -11 -10 -9 -8 -7 -6 -5 -5 -4 -3 ------------- Run | Yrd Mat Mat Mat Fac Fac Fac DSF Fac Res Turns Passed 854 | 18 41 70 64 146 148 4 65 147 151 Spaces Moved 1958 | 28 69 128 125 482 431 12 119 266 298 Core 646 | 28 69 128 33 . . . 11 79 298 Treads . | . . . . . . . . . . Legs . | . . . . . . . . . . Wheels . | . . . . . . . . . . Hover 176 | . . . . . . . 27 149 . Flight 1136 | . . . 92 482 431 12 81 38 . Fastest Speed 23 | 50 50 50 26 23 29 32 32 40 50 Average Speed 38 | 50 50 50 33 28 31 32 38 50 50 Slowest Speed 120 | 50 50 50 50 29 32 32 60 120 50 Overloaded Moves . | . . . . . . . . . . Propulsion Burnouts . | . . . . . . . . . . Robots Hopped 14 | . . . 2 6 5 . 1 . . Potential Cave-ins . | . . . . . . . . . . Cave-ins Triggered . | . . . . . . . . . . Exploration Rate (%) 24 | 3 24 21 24 17 17 . 90 14 14 Regions Visited 9 Branch Regions . Pre-discovered Areas . | . . . . . . . . . . Known Exits Taken 2 | . . . . . . 1 . 1 . Unknown Exits Taken 6 | 1 1 1 1 1 1 . . . . Scrap Searched . | . . . . . . . . . . Spaces Dug . | . . . . . . . . . . Terrain Destroyed . | . . . . . . . . . . Melee . | . . . . . . . . . . Projectile . | . . . . . . . . . . AOE . | . . . . . . . . . . Terrain Rammed . | . . . . . . . . . . Walls Destroyed . | . . . . . . . . . . Machines Disabled . | . . . . . . . . . . Actions | -11 -10 -9 -8 -7 -6 -5 -5 -4 -3 --------- Run | Yrd Mat Mat Mat Fac Fac Fac DSF Fac Res Total 2031 | 31 74 133 141 486 441 11 138 276 300 Wait 8 | 1 5 . . 2 . . . . . Move 1923 | 27 68 127 121 470 420 11 116 265 298 Hop 12 | . . . 1 5 5 . 1 . . Pick Up 26 | 3 . 2 7 3 3 . 6 2 . Fast Attach 14 | . . . 5 . 2 . 5 2 . Attach 13 | . . . 4 2 2 . 2 3 . Detach 3 | . . . . . 3 . . . . Swap 4 | . . . 2 2 . . . . . Drop 18 | . . . 1 2 6 . 8 1 . Fire . | . . . . . . . . . . Melee . | . . . . . . . . . . Ram 10 | . 1 4 . . . . . 3 2 Kick . | . . . . . . . . . . Crush . | . . . . . . . . . . Escape Stasis . | . . . . . . . . . . Rewire . | . . . . . . . . . . Trap . | . . . . . . . . . . Miscellaneous . | . . . . . . . . . . Route ------- -11/Scrapyard -10/Materials -9/Materials -8/Materials -7/Factory (discovered 4 exits: *Fac / *Sto / Low x2) -6/Factory (discovered 5 exits: *Fac / *Low x2 / Ext x2) -5/Factory -5/DSF -4/Factory (discovered 4 exits: *Res x4) -3/Research History --------- Turn | Location | Event 9 | -11/Scrapyard | Discovered new exit (range 14) 19 | -11/Scrapyard | Entered Materials 58 | -10/Materials | Discovered new exit (range 4) 60 | -10/Materials | Entered another Materials area 60 | -9/Materials | Evolved 2 slots: Propulsion x2 126 | -9/Materials | Discovered new exit (range 10) 130 | -9/Materials | Entered another Materials area 130 | -8/Materials | Evolved 2 slots: Power x1, Utility x1 192 | -8/Materials | Discovered new exit (range 6) 194 | -8/Materials | Entered Factory 194 | -7/Factory | Evolved 2 slots: Propulsion x1, Utility x1 305 | -7/Factory | Discovered new exit (range 16) 313 | -7/Factory | Discovered new exit (range 8) 331 | -7/Factory | Identified exit to Storage 331 | -7/Factory | Identified exit to Lower Caves 340 | -7/Factory | Entered another Factory area 340 | -6/Factory | Evolved 2 slots: Propulsion x1, Utility x1 355 | -6/Factory | Identified exit to Lower Caves 355 | -6/Factory | Identified exit to Extension 408 | -6/Factory | Found Hvy. Reflective Plating 459 | -6/Factory | Build established: Sprinter 485 | -6/Factory | Discovered new exit (range 9) 488 | -6/Factory | Entered another Factory area 488 | -5/Factory | Evolved 2 slots: Power x1, Propulsion x1 492 | -5/Factory | Identified exit to DSF 492 | -5/Factory | Entered DSF 517 | -5/DSF | Additional patrols routed to DSF 550 | -5/DSF | Discovered new exit (range 14) 557 | -5/DSF | Entered Factory 557 | -4/Factory | Evolved 2 slots: Propulsion x1, Utility x1 574 | -4/Factory | Lost 4 parts (3n1u) 588 | -4/Factory | Identified exit to Research 695 | -4/Factory | Lost 9 parts (1p5n3u) 702 | -4/Factory | Core integrity fell below 50% 704 | -4/Factory | Entered Research 704 | -3/Research | Evolved 2 slots: Propulsion x2 823 | -3/Research | Core integrity fell below 50% 838 | -3/Research | Core integrity fell below 20% 855 | -3/Research | Destroyed by S-43 Plague with Heavy Machine Gun Last Messages --------------- 00749_ Penetrated by Slug. 00749_ Slug penetrates Wall. 00785_ K-01 Serf cleans the Subatomic Condenser. 00794_ O-32 Director: "IFF HANDSHAKE FAILED. SECURING TERMINAL." 00797_ ALERT: Potential suspicious activity detected, Programmers report to Research Zone 6T. 00799_ O-32 Director sends out distress signal. 00810_ Hacking Suite destroyed. 00812_ Graphene Brace destroyed. 00813_ ALERT: Hostiles spotted, dispatching reinforcements to Terminal R008. 00824_ Slammed into S-43 Plague. 00842_ Drone sends a signal. 00842_ K-01 Serf destroyed. 00849_ Penetrated by Slug. 00851_ System corrupted: IFF burst signal emitted. Map ----- +----------------------------------------------------+ | ??????????????????????????# # #? | | ??????????????????????????# # #? | | ?????????????????????###??? # ?? | | ????###########?????? #????? ?# ???? | | ????# #?????? #??????? ???# ?????? | | ????# # ??""" ##########+#######"######## | | ????# # """" # | | ????# # """" # | | ????# # """" # ! | | ????# ![ *# """" # ! *%= | | ????# ![ #? # ! """ ############### | | ????# #??? # """ #?????????????? | | #####+#######+######+### """ #????????????? | | #??????????? | | # ""?????#"" | | / ""?????#"" | | k # ""?????#"" | | ### """ ######## s##########?????????#T | | ??# """ #??????# #??????????????????#"" | | ??# """ #??????# #??????????????????#"" | | ??# +??????# #???????????????????"" | | ??+ #??????# #??????????????????? | | ??# #??????# #???????????????????? | | ??# ???????# #???????????????????#### | | ??####/#######???????# #??????????????????????? | | ????? ??????????????# @#??????????????????????? | | ?????????????????????# #??????????????????????? | | ?????????????????????# #??????????????????????? | | ?????????????????????# #??????????????????????? | | ?????????????????????# #??????????????????????? | | ?????????????????????# #??????????????????????? | | ?????????????????????# #??????????????????????? | | ?????????????????????# #??????????????????????? | | ?????????????????????# #??????????????????????? | | ?????????????????????# ???????????????????????? | | ????????????????????? ???????????????????????? | | ????????????????????? ???????????????????????? | | ???????????????????? k ???????????????????????? | | ???????????????????? ???????????????????????? | | ?????????????????????# ???????????????????????? | | ??????????????????????? ???????????????????????? | | ?????????????????????????????????????????????????? | | ?????????????????????????????????????????????????? | | ?????????????????????????????????????????????????? | | ?????????????????????????????????????????????????? | | ?????????????????????????????????????????????????? | | ?????????????????????????????????????????????????? | | ?????????????????????????????????????????????????? | | ?????????????????????????????????????????????????? | | ?????????????????????????????????????????????????? | +----------------------------------------------------+ Best States ------------- Heat Dissipation 46 Energy Generation 31 Energy Capacity 220 Matter Stores 300 Matter Capacity 300 Sight Range 16 Terrain Scan Density 10 ECM Strength 1 Resistance: KI 20 Propulsion Shielding 66 Evasion (%) 65 Offensive Hacking 30 Item Schematics ----------------- None Robot Schematics ------------------ None Fabricated ------------ Nothing Repaired ---------- Nothing Alien Tech Used ----------------- None Achievements -------------- None Challenges ------------ None Game ------ Seed HugeArmoredBlasthammer Manual? 0 Play Time 00:26:55 Cumulative 100.0 hours Start 2025.08.05 @ 06:12:42 End 2025.08.05 @ 06:38:49 Sessions 1 Manual Loads 0 Difficulty Rogue Special Mode None Game No. 179 Rogue 179 Adventurer 0 Explorer 0 Win Type - Total 1 Types 1/0/0/0/0/0/0/0/0/0 Lore% 65 Gallery% 59 Achievement% 43 Wizard Run 0 Options --------- Layout 1 ASCII 0 Keyboard 0 Movement Numpad Keybinds 0 Fullscreen 1 Font 24/Smallcaps Map View 50x35 Zoom Use 0% Tactical HUD 1 Map Filters NONE Filters NONE Steam 1 RUN: 7010f651-586f-41ca-8c7b-93ecca38dff5